[Event "FRA-ch Youth U14 2018"]
[Site "Agen"]
[Date "2018.04.16"]
[Round "2"]
[White "Hamon, Elisa"]
[Black "Moracchini, Margaux"]
[Result "1/2-1/2"]
[ECO "B76"]
[WhiteElo "1451"]
[BlackElo "1939"]
[Annotator "NA RC"]
[PlyCount "100"]
[EventDate "2018.??.??"]
[EventType "swiss"]
[EventCountry "FRA"]
[SourceTitle "playchess.com"]
[Source "ChessBase"]
[SourceQuality "1"]
[TimeControl "5400+30"]

{[%evp 22,100,110,49,72,43,32767,32767,32767,150,159,147,158,32767,32767,32767,143,124,126,118,32767,32767,32767,32767,32767,32767,6,32767,0,0,32767,21,25,32767,32767,15,19,-4,-9,-8,-4,32767,32767,32767,32767,-25,-16,-42,17,0,14,0,14,25,12,8,8,0,0,8,0,0,8,0,0,0,0,0,0,0,0,32767,0,0,8,0,0,0,0,0,0]} 1. e4 {[%emt 0:00:00]} c5 {[%emt 0:00:04]} 2. Nf3 {[%emt 0:00:00]} d6 {[%emt 0:00:12]} 3. d4 {[%emt 0:00:42]} cxd4 {[%emt 0:00:04]} 4. Nxd4 {[%emt 0:00:54]} Nf6 {[%emt 0:00:07]} 5. Nc3 {[%emt 0:00:33]} g6 {[%emt 0:00:05]} 6. Be3 {[%emt 0:01:32]} Bg7 {[%emt 0:00:06]} 7. f3 {[%emt 0:01:21]} O-O {[%emt 0:00:12]} 8. Qd2 {[%emt 0:03:01]} Nc6 {[%emt 0:00:09]} 9. g4 {[%emt 0:02:31]} Nxd4 {[%emt 0:01:57]} 10. Bxd4 {[%emt 0:00:07]} Be6 {[%emt 0:00:21]} 11. h4 {[%emt 0:04:25]} h5 {[%emt 0:10:00] B76: Sicilian Dragon: Yugoslav Attack, 9 g4 and 9 0-0-0} (11... Qa5 12. h5 Rfc8 13. a3 Rab8 14. hxg6 hxg6 15. Bd3 Bc4 16. O-O-O b5 17. Bxc4 Rxc4 18. Bxf6 Bxf6 19. Nd5 Qxd2+ 20. Rxd2 Kg7 {1-0 (66) Vocaturo,D (2598)-Grigoryan,K (2584) Barcelona 2017}) 12. O-O-O {[%emt 0:11:55]} Qa5 {[%emt 0:03:55]} 13. Qg5 {[%emt 0:06:22]} (13. gxh5 $16 Nxh5 14. Rg1) 13... Qxg5+ {[%emt 0:27:15]} 14. hxg5 {[%emt 0:00:13]} Nh7 {[%emt 0:00:58]} 15. gxh5 {[%emt 0:08:17]} Nxg5 {[%emt 0:03:53]} 16. Bxg7 {[%emt 0:01:51]} Kxg7 {[%emt 0:00:09]} 17. f4 {[%emt 0:00:55]} Nh7 {[%emt 0:01:04]} 18. Bd3 $146 {[%emt 0:01:48]} Nf6 {[%emt 0:13:54] [#]} 19. hxg6 $1 {[%emt 0:12:57]} fxg6 {[%emt 0:00:22]} 20. f5 {[%emt 0:01:18]} gxf5 {[%emt 0:14:34]} 21. Rdg1+ {[%emt 0:00:35]} Kf7 {[%emt 0:00:29]} 22. exf5 {[%emt 0:00:26]} Bd7 {[%emt 0:01:08]} 23. Bc4+ {[%emt 0:00:39]} Ke8 {[%emt 0:03:16]} 24. Rg7 {[%emt 0:08:39]} Rc8 {[%emt 0:02:17]} 25. Bd3 {[%emt 0:01:45]} Rg8 {[%emt 0:05:03]} 26. Rxg8+ {[%emt 0:02:17]} Nxg8 {[%emt 0:00:03]} 27. Be4 {[%emt 0:03:25]} Bc6 {[%emt 0:02:12]} 28. Nd5 {[%emt 0:01:37]} Kd7 {[%emt 0:01:45]} 29. f6 {[%emt 0:02:32]} Bxd5 $1 {[%emt 0:03:29]} 30. Bxd5 {[%emt 0:01:17]} Nxf6 {[%emt 0:00:12]} 31. Bxb7 {[%emt 0:00:16]} Rc5 {[%emt 0:00:13]} 32. Rd1 {[%emt 0:02:54]} e5 {[%emt 0:01:07]} 33. b3 {[%emt 0:02:27]} d5 {[%emt 0:01:39]} 34. Kb2 {[%emt 0:04:40]} Ra5 {[%emt 0:01:20]} 35. Rf1 {[%emt 0:00:54]} Ng8 {[%emt 0:01:54]} 36. Rf5 {[%emt 0:02:14]} Kd6 {[%emt 0:00:28]} 37. Rf8 {[%emt 0:01:33]} Ne7 {[%emt 0:00:23]} 38. Rf6+ {[%emt 0:00:33]} Kd7 $1 {[%emt 0:00:40]} 39. a3 {[%emt 0:01:24]} Rb5 {[%emt 0:00:56]} 40. Ba6 {[%emt 0:00:53]} Rb6 {[%emt 0:01:19]} 41. Rxb6 {[%emt 0:00:33]} axb6 {[%emt 0:00:03]} 42. Kc3 {[%emt 0:00:24]} Kc6 {[%emt 0:00:09]} 43. a4 {[%emt 0:00:17]} Nf5 {[%emt 0:00:18]} 44. Bb5+ {[%emt 0:00:30]} Kd6 {[%emt 0:00:30]} 45. b4 {[%emt 0:01:01]} Nd4 {[%emt 0:00:15]} 46. Bd3 {[%emt 0:00:32]} Nc6 {[%emt 0:00:32]} 47. Bb5 {[%emt 0:00:42]} d4+ {[%emt 0:01:17]} 48. Kc4 {[%emt 0:00:38]} Ne7 {[%emt 0:00:08]} 49. c3 {[%emt 0:00:32]} dxc3 {[%emt 0:00:48]} 50. Kxc3 {[%emt 0:00:04]} Nd5+ $11 {[%emt 0:01:00]} 1/2-1/2

[Event "FRA-ch Youth U14 2018"]
[Site "Agen"]
[Date "2018.04.16"]
[Round "2"]
[White "Soulet, Julia"]
[Black "Nguyen, Thao Nhi"]
[Result "0-1"]
[ECO "A51"]
[WhiteElo "1413"]
[BlackElo "1861"]
[Annotator "NA RC"]
[PlyCount "54"]
[EventDate "2018.??.??"]
[EventType "swiss"]
[EventCountry "FRA"]
[SourceTitle "playchess.com"]
[Source "ChessBase"]
[SourceQuality "1"]
[TimeControl "5400+30"]

{[%evp 11,46,-37,-35,-173,-147,-133,-110,-101,-99,-167,-168,-147,-119,-328,-312,-395,-408,32767,32767,32767,32767,-729,-932,-866,-792,-1059,-1237,32767,32767,-881,-1081,-1333,-1539,-1958,-1924,-1696,-2235]} 1. d4 {[%emt 0:00:00]} Nf6 {[%emt 0:00:06]} 2. c4 {[%emt 0:00:00]} e5 {[%emt 0:00:04]} 3. e3 {[%emt 0:04:22]} exd4 {[%emt 0:02:31]} 4. exd4 {[%emt 0:00:25]} Bb4+ {[%emt 0:00:25]} 5. Bd2 {[%emt 0:00:58]} Bxd2+ {[%emt 0:00:18]} 6. Nxd2 {[%emt 0:01:10]} O-O {[%emt 0:00:51]} 7. Ne2 $2 {[%emt 0:05:44] A51: Budapest Gambit, Fajarowicz Variation} (7. Ngf3 $11 Re8+ 8. Be2 Qe7 9. Rc1 d5 10. Rc3 dxc4 11. Re3 Qb4 12. Rxe8+ Nxe8 13. Bxc4 Nd6 14. Qb3 Nc6 {0-1 (46) Biljanic,L (2350)-Zivkovic,D (2263) Sabac 2014}) 7... Re8 {[%emt 0:05:46]} 8. g3 {[%emt 0:01:09]} d5 $146 {[%emt 0:00:32]} ({Predecessor:} 8... Nc6 $19 9. Qb3 (9. d5 Nd4 10. Rc1 d6 11. Nb1 Nf3# {0-1 (11) Lopez Perez,R-Abadia Pascual,L Binissalem 2002}) 9... Nxd4) 9. Bg2 {[%emt 0:02:13]} Bg4 {[%emt 0:00:49]} 10. f3 {[%emt 0:02:57]} Bf5 {[%emt 0:01:00]} 11. O-O {[%emt 0:01:19]} Nc6 {[%emt 0:06:52]} 12. g4 $2 {[%emt 0:14:21]} (12. Rf2 $17) 12... Bd3 {[%emt 0:01:48]} 13. Re1 {[%emt 0:00:24]} dxc4 {[%emt 0:00:23]} 14. Rc1 {[%emt 0:07:28]} Nxd4 {[%emt 0:00:50]} 15. Nf4 {[%emt 0:02:09]} Qd6 {[%emt 0:09:57]} 16. Rxe8+ {[%emt 0:15:33]} Rxe8 {[%emt 0:00:14]} 17. Nxd3 {[%emt 0:06:29]} cxd3 {[%emt 0:00:07]} 18. Bf1 {[%emt 0:00:54]} Ne2+ {[%emt 0:05:15]} 19. Bxe2 {[%emt 0:00:25]} dxe2 {[%emt 0:00:05]} 20. Qe1 {[%emt 0:01:22]} Qd4+ {[%emt 0:04:23]} 21. Kg2 {[%emt 0:02:40]} Nd5 {[%emt 0:00:19]} 22. Ne4 {[%emt 0:02:45]} Nf4+ {[%emt 0:01:15]} 23. Kg3 $19 {[%emt 0:00:27]} Rxe4 {[%emt 0:04:34]} 24. Rxc7 {[%emt 0:04:10]} Re8 {[%emt 0:02:11]} 25. Qc1 {[%emt 0:01:56]} Nd3 {[%emt 0:00:21]} 26. Re7 {[%emt 0:07:27]} Qd6+ {[%emt 0:00:17]} 27. Kg2 {[%emt 0:00:18]} Qxe7 {[%emt 0:00:14]} 0-1

[Event "FRA-ch Youth U14 2018"]
[Site "Agen"]
[Date "2018.04.16"]
[Round "3"]
[White "Chemla, Anouk"]
[Black "David, Marie"]
[Result "1-0"]
[ECO "A05"]
[WhiteElo "1705"]
[BlackElo "1470"]
[Annotator "NA RC"]
[PlyCount "90"]
[EventDate "2018.??.??"]
[EventType "swiss"]
[EventCountry "FRA"]
[SourceTitle "playchess.com"]
[Source "ChessBase"]
[SourceQuality "1"]
[TimeControl "5400+30"]

1. Nf3 {[%emt 0:00:00]} Nf6 {[%emt 0:00:26]} 2. g3 {[%emt 0:00:00]} g6 {[%emt 0:00:26]} 3. b4 {[%emt 0:00:00]} Bg7 {[%emt 0:00:40]} 4. Bb2 {[%emt 0:00:00]} O-O {[%emt 0:00:32]} 5. c4 {[%emt 0:00:30]} d5 {[%emt 0:03:23]} 6. Na3 {[%emt 0:00:56]} b6 {[%emt 0:15:33]} 7. Bg2 {[%emt 0:01:21]} Bb7 {[%emt 0:00:43]} 8. O-O {[%emt 0:01:36]} Nbd7 {[%emt 0:03:17]} 9. d3 {[%emt 0:06:26]} c5 {[%emt 0:05:02]} 10. b5 {[%emt 0:02:40]} d4 {[%emt 0:03:34]} 11. Nc2 {[%emt 0:05:06]} Qc7 {[%emt 0:03:51]} 12. e4 {[%emt 0:04:50]} dxe3 {[%emt 0:03:31]} 13. Nxe3 {[%emt 0:05:59]} Rad8 {[%emt 0:02:48]} 14. Qc2 {[%emt 0:02:09]} Bxf3 {[%emt 0:16:31]} 15. Bxf3 {[%emt 0:01:14]} Ne5 {[%emt 0:00:27]} 16. Bxe5 {[%emt 0:02:00]} Qxe5 {[%emt 0:00:10]} 17. Rad1 {[%emt 0:02:07]} Qd6 {[%emt 0:01:32]} 18. Rfe1 {[%emt 0:04:04]} Nd7 {[%emt 0:02:19]} 19. Be4 {[%emt 0:18:58]} f5 {[%emt 0:12:19]} 20. Bd5+ {[%emt 0:01:27]} e6 {[%emt 0:00:27]} 21. Nxf5 {[%emt 0:01:27]} Rxf5 {[%emt 0:08:29]} 22. Bxe6+ {[%emt 0:02:41]} Kf8 {[%emt 0:02:20]} 23. Bxf5 {[%emt 0:00:33]} gxf5 {[%emt 0:00:08]} 24. d4 {[%emt 0:06:41]} Bxd4 {[%emt 0:00:41]} 25. Qxf5+ {[%emt 0:00:25]} Qf6 {[%emt 0:00:28]} 26. Qxf6+ {[%emt 0:01:40]} Nxf6 {[%emt 0:00:10]} 27. Kg2 {[%emt 0:02:32]} Kf7 {[%emt 0:02:53]} 28. f4 {[%emt 0:03:22]} Rg8 {[%emt 0:02:44]} 29. Kf3 {[%emt 0:03:14]} Ng4 {[%emt 0:01:40]} 30. Re2 {[%emt 0:00:45]} h5 {[%emt 0:02:26]} 31. Rde1 {[%emt 0:01:39]} Kg7 {[%emt 0:02:24]} 32. h3 {[%emt 0:01:31]} Nf6 {[%emt 0:00:07]} 33. Re7+ {[%emt 0:00:08]} Kh8 {[%emt 0:00:33]} 34. Rxa7 {[%emt 0:00:35]} Rd8 {[%emt 0:01:07]} 35. Ree7 {[%emt 0:01:31]} Bc3 {[%emt 0:01:15]} 36. Rab7 {[%emt 0:05:13]} Ba5 {[%emt 0:01:25]} 37. Rf7 {[%emt 0:01:09]} Rd3+ {[%emt 0:01:04]} 38. Ke2 {[%emt 0:01:19]} Rd2+ {[%emt 0:01:12]} 39. Ke3 {[%emt 0:00:36]} Rd6 {[%emt 0:00:32]} 40. Rf8+ {[%emt 0:01:14]} Ng8 {[%emt 0:00:11]} 41. Rbb8 {[%emt 0:00:41]} Rg6 {[%emt 0:00:32]} 42. Kf3 {[%emt 0:00:46]} Kh7 {[%emt 0:00:38]} 43. g4 {[%emt 0:02:13]} hxg4+ {[%emt 0:00:19]} 44. hxg4 {[%emt 0:00:27]} Bc3 {[%emt 0:00:56]} 45. g5 {[%emt 0:01:19]} Bg7 1-0

[Event "FRA-ch Youth U14 2018"]
[Site "Agen"]
[Date "2018.04.16"]
[Round "3"]
[White "Barbotte, Jeanne"]
[Black "Randrianarimanana, Alicia"]
[Result "1/2-1/2"]
[ECO "B52"]
[WhiteElo "1556"]
[BlackElo "1872"]
[Annotator "NA RC"]
[PlyCount "66"]
[EventDate "2018.??.??"]
[EventType "swiss"]
[EventCountry "FRA"]
[SourceTitle "playchess.com"]
[Source "ChessBase"]
[SourceQuality "1"]
[TimeControl "5400+30"]

1. e4 {[%emt 0:00:00]} c5 {[%emt 0:00:04]} 2. Nf3 {[%emt 0:00:00]} d6 {[%emt 0:00:06]} 3. Bb5+ {[%emt 0:03:04]} Bd7 {[%emt 0:00:11]} 4. Bxd7+ {[%emt 0:00:40]} Qxd7 {[%emt 0:00:08]} 5. O-O {[%emt 0:00:34]} g6 {[%emt 0:01:02]} 6. c3 {[%emt 0:01:36]} Nf6 $14 {[%emt 0:11:19] LiveBook: 13 Games} 7. Qe2 {[%emt 0:04:47]} Nc6 {[%emt 0:00:33]} 8. e5 {[%emt 0:09:52]} dxe5 {[%emt 0:03:58]} 9. Nxe5 {[%emt 0:01:04]} Nxe5 {[%emt 0:13:03]} 10. Qxe5 {[%emt 0:00:36]} Rc8 {[%emt 0:00:16]} 11. d4 {[%emt 0:07:27]} cxd4 {[%emt 0:00:59]} 12. cxd4 {[%emt 0:01:54]} Bg7 {[%emt 0:00:30]} 13. Be3 {[%emt 0:11:00]} O-O {[%emt 0:00:24]} 14. Qa5 {[%emt 0:04:19]} a6 {[%emt 0:04:01]} 15. Qd2 {[%emt 0:00:19]} Rfd8 {[%emt 0:06:33]} 16. Nc3 {[%emt 0:08:44]} b5 {[%emt 0:01:01]} 17. a3 {[%emt 0:01:04]} Nd5 {[%emt 0:05:13]} 18. Rad1 {[%emt 0:01:55]} e6 {[%emt 0:24:15]} 19. Ne4 {[%emt 0:05:45]} Nxe3 {[%emt 0:06:36]} 20. fxe3 {[%emt 0:00:51]} f5 {[%emt 0:00:27]} 21. Nc3 {[%emt 0:11:17]} e5 {[%emt 0:03:01]} 22. Ne2 {[%emt 0:13:10]} Rc6 {[%emt 0:03:39]} 23. d5 {[%emt 0:04:36]} Rd6 {[%emt 0:01:59]} 24. Qa5 {[%emt 0:03:42]} Qa7 {[%emt 0:00:27]} 25. Rf3 {[%emt 0:02:08]} e4 {[%emt 0:01:07]} 26. Rh3 {[%emt 0:00:22]} Bxb2 {[%emt 0:02:05]} 27. Rb1 {[%emt 0:00:57]} Qg7 {[%emt 0:00:53]} 28. Qb4 {[%emt 0:01:01]} Be5 {[%emt 0:00:13]} 29. Ng3 {[%emt 0:01:00]} Rxd5 {[%emt 0:01:40]} 30. Qb3 {[%emt 0:00:20]} Bxg3 {[%emt 0:02:02]} 31. Rxg3 {[%emt 0:00:05]} Qf7 {[%emt 0:00:05]} 32. Qc2 {[%emt 0:00:26]} Rd3 {[%emt 0:00:58]} 33. a4 {[%emt 0:01:02]} Qc4 {[%emt 0:00:10]} 1/2-1/2

[Event "FRA-ch Youth U14 2018"]
[Site "Agen"]
[Date "2018.04.16"]
[Round "3"]
[White "Courjal, Pauline"]
[Black "Kuhn, Mathilde"]
[Result "*"]
[ECO "E73"]
[WhiteElo "1509"]
[BlackElo "1742"]
[Annotator "NA RC"]
[PlyCount "30"]
[EventDate "2018.??.??"]
[EventType "swiss"]
[EventCountry "FRA"]
[SourceTitle "playchess.com"]
[Source "ChessBase"]
[SourceQuality "1"]
[TimeControl "5400+30"]

1. d4 {[%emt 0:00:00]} Nf6 {[%emt 0:00:12]} 2. c4 {[%emt 0:00:00]} g6 {[%emt 0:00:14]} 3. Nc3 {[%emt 0:00:00]} Bg7 {[%emt 0:00:00]} 4. e4 {[%emt 0:00:00]} d6 {[%emt 0:00:23]} 5. Be2 {[%emt 0:00:03]} O-O {[%emt 0:00:41]} 6. Bg5 {[%emt 0:00:20]} Nbd7 {[%emt 0:01:25]} 7. Nf3 {[%emt 0:01:36]} h6 {[%emt 0:02:43]} 8. Bf4 {[%emt 0:01:39]} c6 {[%emt 0:04:23]} 9. Qd2 {[%emt 0:02:15]} Kh7 {[%emt 0:03:27]} 10. O-O-O {[%emt 0:03:41]} Qa5 {[%emt 0:08:34]} 11. Rdg1 {[%emt 0:10:46]} e5 {[%emt 0:04:46]} 12. dxe5 {[%emt 0:00:31]} dxe5 {[%emt 0:00:34]} 13. Be3 {[%emt 0:05:51]} Ng4 {[%emt 0:06:49]} 14. Ng5+ {[%emt 0:01:50]} hxg5 {[%emt 0:02:31]} 15. Bxg4 {[%emt 0:00:14]} f5 {[%emt 0:02:32]} *

[Event "FRA-ch Youth U14 2018"]
[Site "Agen"]
[Date "2018.04.17"]
[Round "4"]
[White "Cohen Revivo, Shoham"]
[Black "Brouard, Gregoire"]
[Result "1-0"]
[ECO "A01"]
[WhiteElo "2180"]
[BlackElo "1955"]
[Annotator "NA"]
[PlyCount "103"]
[EventDate "2018.??.??"]
[EventType "swiss"]
[EventCountry "FRA"]
[SourceTitle "playchess.com"]
[Source "ChessBase"]
[SourceQuality "1"]
[TimeControl "5400+30"]

1. b3 {[%emt 0:00:35]} Nf6 {[%emt 0:00:12]} 2. Bb2 {[%emt 0:00:08]} g6 {[%emt 0:00:09]} 3. Bxf6 {[%emt 0:00:12]} exf6 {[%emt 0:00:06]} 4. c4 {[%emt 0:00:05]} Bg7 {[%emt 0:00:04]} 5. Nc3 {[%emt 0:00:06]} O-O {[%emt 0:00:46]} 6. g3 {[%emt 0:02:10]} d6 {[%emt 0:04:25]} 7. Bg2 {[%emt 0:00:15] LiveBook: 12 Games} Nc6 {[%emt 0:01:35]} 8. d4 {[%emt 0:02:03]} f5 {[%emt 0:02:13]} 9. e3 {[%emt 0:00:07]} Bd7 {[%emt 0:00:22]} 10. Nge2 {[%emt 0:00:06]} a6 {[%emt 0:01:43]} 11. O-O {[%emt 0:00:08]} Rb8 {[%emt 0:01:47]} 12. Rc1 {[%emt 0:03:15]} Na7 {[%emt 0:03:55]} 13. Qc2 $14 {[%emt 0:06:08]} b5 {[%emt 0:07:33]} 14. cxb5 {[%emt 0:00:09]} axb5 {[%emt 0:00:54]} 15. Nd5 {[%emt 0:01:09]} c6 {[%emt 0:04:14]} 16. Nb4 {[%emt 0:00:10]} Qb6 {[%emt 0:01:08]} 17. Nxc6 {[%emt 0:02:26]} Bxc6 {[%emt 0:01:09]} 18. Bxc6 {[%emt 0:00:09]} Rfc8 {[%emt 0:00:10]} 19. d5 {[%emt 0:00:03]} Rc7 {[%emt 0:02:21]} 20. Qd3 {[%emt 0:08:06]} Nxc6 {[%emt 0:02:10]} 21. Rxc6 {[%emt 0:00:08]} Rxc6 {[%emt 0:00:06]} 22. dxc6 {[%emt 0:00:04]} Qxc6 {[%emt 0:00:15]} 23. Rc1 {[%emt 0:00:07]} Qb6 {[%emt 0:02:08]} 24. Nf4 {[%emt 0:00:17]} Be5 {[%emt 0:23:33]} 25. Nd5 {[%emt 0:00:14]} Qa5 {[%emt 0:04:27]} 26. f4 {[%emt 0:04:58]} Bb2 {[%emt 0:02:59]} 27. Ne7+ {[%emt 0:04:08]} Kg7 {[%emt 0:01:02]} 28. Nc6 {[%emt 0:02:14]} Qa3 {[%emt 0:08:59]} 29. Rc2 {[%emt 0:06:51]} Rc8 {[%emt 0:02:58]} 30. Qxb5 {[%emt 0:03:36]} Qxa2 {[%emt 0:01:59]} 31. Qe2 {[%emt 0:02:20]} Qb1+ {[%emt 0:01:22]} 32. Kg2 {[%emt 0:00:06]} Bf6 {[%emt 0:01:11]} 33. b4 {[%emt 0:01:14]} Qb3 {[%emt 0:02:33]} 34. b5 {[%emt 0:03:32]} Qd5+ {[%emt 0:01:22]} 35. Kh3 {[%emt 0:00:15]} h5 {[%emt 0:04:49]} 36. Rd2 {[%emt 0:07:13]} Qe4 {[%emt 0:03:16]} 37. Rxd6 {[%emt 0:08:52]} h4 {[%emt 0:01:11]} 38. Qd3 {[%emt 0:03:35]} g5 {[%emt 0:07:31]} 39. Qxe4 {[%emt 0:01:40]} g4+ {[%emt 0:00:14]} 40. Kg2 {[%emt 0:00:04]} h3+ {[%emt 0:00:04]} 41. Kf2 {[%emt 0:00:12]} fxe4 {[%emt 0:00:05]} 42. b6 {[%emt 0:00:23]} Be7 {[%emt 0:01:55]} 43. b7 {[%emt 0:00:31]} Rc7 {[%emt 0:00:21]} 44. b8=Q {[%emt 0:01:13]} Bxd6 {[%emt 0:00:09]} 45. Qb5 {[%emt 0:00:32]} f6 {[%emt 0:00:36]} 46. Qd5 {[%emt 0:00:21]} Rb7 {[%emt 0:00:31]} 47. Qxd6 {[%emt 0:00:11]} Rb2+ {[%emt 0:00:07]} 48. Ke1 {[%emt 0:00:12]} Rxh2 {[%emt 0:00:42]} 49. Qd7+ {[%emt 0:00:13]} Kh6 {[%emt 0:00:25]} 50. Qxg4 {[%emt 0:01:08]} Rh1+ {[%emt 0:00:22]} 51. Kf2 {[%emt 0:00:15]} h2 {[%emt 0:00:23]} 52. Kg2 {[%emt 0:00:59]} 1-0

[Event "FRA-ch Youth U14 2018"]
[Site "Agen"]
[Date "2018.04.17"]
[Round "4"]
[White "Lary, Damien"]
[Black "Popov, Konstantin"]
[Result "1/2-1/2"]
[ECO "A50"]
[WhiteElo "2072"]
[BlackElo "2150"]
[Annotator "NA"]
[PlyCount "119"]
[EventDate "2018.??.??"]
[EventType "swiss"]
[EventCountry "FRA"]
[SourceTitle "playchess.com"]
[Source "ChessBase"]
[SourceQuality "1"]
[TimeControl "5400+30"]

1. d4 {[%emt 0:00:00]} Nf6 {[%emt 0:00:18]} 2. c4 {[%emt 0:00:00]} g6 {[%emt 0:00:20]} 3. f3 {[%emt 0:00:00]} Nc6 {[%emt 0:00:20] E60: King's Indian: Unusual lines and Fianchetto Variation without Nc3} (3... c5 4. d5 d6 5. e4 e6 6. Nc3 exd5 7. cxd5 Bg7 8. Nge2 Nbd7 9. Ng3 h5 10. Be2 Nh7 11. Bf4 Qe7 12. Qd2 h4 13. Nf1 g5 14. Be3 Ne5 15. g3 Bd7 16. gxh4 gxh4 {½-½ (42) Aronian,L (2794)-Grischuk,A (2767) Berlin 2018}) 4. e4 {[%emt 0:01:25]} e5 {[%emt 0:01:33]} 5. Ne2 {[%emt 0:03:43]} exd4 {[%emt 0:19:55]} 6. Nxd4 {[%emt 0:00:08]} Nxe4 $146 {[%emt 0:14:20]} ({Find the theoretical novelty and annotate with similar games:} 6... Bg7 7. Nxc6 bxc6 8. Nc3 O-O 9. Be2 d5 10. cxd5 cxd5 11. exd5 {1-0 (60) Bercys,S (2434)-Shabalov,A (2580) ICC INT 2009}) 7. fxe4 {[%emt 0:05:57]} Qh4+ {[%emt 0:01:32]} 8. g3 {[%emt 0:00:11]} Qxe4+ {[%emt 0:00:29]} 9. Qe2 {[%emt 0:00:06]} Qxe2+ {[%emt 0:00:29]} 10. Nxe2 {[%emt 0:00:02]} Bg7 {[%emt 0:00:21]} 11. Nbc3 {[%emt 0:07:19]} Nb4 {[%emt 0:01:42]} 12. Kd1 {[%emt 0:00:16]} d6 {[%emt 0:02:45]} 13. Nd5 {[%emt 0:15:01]} Nxd5 {[%emt 0:00:17]} 14. cxd5 {[%emt 0:00:02]} O-O {[%emt 0:02:13]} 15. Nc3 {[%emt 0:00:49]} Re8 {[%emt 0:01:36]} 16. Bd3 {[%emt 0:04:23]} Bxc3 {[%emt 0:09:30]} 17. bxc3 {[%emt 0:00:02]} Bg4+ {[%emt 0:00:02]} 18. Kc2 {[%emt 0:00:22]} Bf3 {[%emt 0:00:02]} 19. Rf1 {[%emt 0:01:00]} Bxd5 {[%emt 0:00:10]} 20. c4 {[%emt 0:04:21]} Be4 {[%emt 0:03:46]} 21. Rf6 {[%emt 0:01:08]} Bxd3+ {[%emt 0:00:34]} 22. Kxd3 {[%emt 0:00:01]} Re1 {[%emt 0:04:14]} 23. Bb2 $16 {[%emt 0:03:07]} Rxa1 {[%emt 0:00:20]} 24. Bxa1 {[%emt 0:00:01]} Re8 {[%emt 0:00:28]} 25. g4 {[%emt 0:02:43]} Re1 {[%emt 0:00:41]} 26. Bc3 {[%emt 0:00:05]} Rg1 {[%emt 0:22:21]} 27. Rf4 {[%emt 0:01:09]} Kf8 {[%emt 0:04:55]} 28. h4 {[%emt 0:09:27]} Rg3+ {[%emt 0:01:10]} 29. Kc2 {[%emt 0:00:10]} Re3 30. Bd4 {[%emt 0:03:08]} Re2+ {[%emt 0:02:31]} 31. Kd3 {[%emt 0:03:13]} Re8 {[%emt 0:03:38]} 32. h5 {[%emt 0:01:48]} Kg8 {[%emt 0:02:17]} 33. Bf6 {[%emt 0:08:50]} h6 {[%emt 0:01:06]} 34. Bd4 {[%emt 0:03:21]} c5 {[%emt 0:00:50]} 35. Bc3 {[%emt 0:00:07]} gxh5 {[%emt 0:00:13]} 36. gxh5 {[%emt 0:00:07]} Re6 {[%emt 0:00:02]} 37. Rg4+ {[%emt 0:00:42]} Kf8 {[%emt 0:00:04]} 38. Rg7 {[%emt 0:00:38]} a6 {[%emt 0:01:28]} 39. Rh7 {[%emt 0:00:18]} b5 {[%emt 0:00:26]} 40. Rh8+ {[%emt 0:00:27]} Ke7 {[%emt 0:00:07]} 41. Bg7 {[%emt 0:01:38]} Re1 {[%emt 0:00:53]} 42. Bxh6 {[%emt 0:00:51]} Rd1+ {[%emt 0:00:18]} 43. Kc3 {[%emt 0:02:37]} Rh1 {[%emt 0:00:38]} 44. Bg5+ {[%emt 0:03:34]} f6 {[%emt 0:00:15]} 45. Bf4 {[%emt 0:04:08]} Rh3+ {[%emt 0:00:16]} 46. Kc2 {[%emt 0:00:13]} bxc4 {[%emt 0:00:40]} 47. h6 {[%emt 0:00:09]} d5 {[%emt 0:00:38]} 48. Ra8 {[%emt 0:01:30]} Ke6 {[%emt 0:00:17]} 49. Rxa6+ {[%emt 0:00:35]} Kf5 {[%emt 0:00:05]} 50. Bd2 {[%emt 0:00:22]} Ke5 {[%emt 0:01:11]} 51. Rc6 {[%emt 0:05:06]} Kd4 {[%emt 0:00:27]} 52. Rxf6 {[%emt 0:00:39]} c3 {[%emt 0:00:22]} 53. Bf4 {[%emt 0:00:41]} Kc4 {[%emt 0:00:46]} 54. Be5 {[%emt 0:06:36]} d4 {[%emt 0:00:13]} 55. Rd6 {[%emt 0:00:43]} d3+ {[%emt 0:00:52]} 56. Rxd3 {[%emt 0:00:02]} Rxd3 {[%emt 0:00:09]} 57. h7 {[%emt 0:00:03]} Rh3 {[%emt 0:00:04]} 58. h8=Q {[%emt 0:00:06]} Rxh8 {[%emt 0:00:05]} 59. Bxh8 {[%emt 0:00:04]} Kb4 {[%emt 0:00:14]} 60. Bxc3+ {[%emt 0:00:17]} 1/2-1/2

[Event "FRA-ch Youth U14 2018"]
[Site "Agen"]
[Date "2018.04.17"]
[Round "4"]
[White "Nguyen-Cadoret, Nathan"]
[Black "Ciccoli, Theo"]
[Result "1/2-1/2"]
[ECO "A57"]
[WhiteElo "1964"]
[BlackElo "2126"]
[Annotator "NA"]
[PlyCount "72"]
[EventDate "2018.??.??"]
[EventType "swiss"]
[EventCountry "FRA"]
[SourceTitle "playchess.com"]
[Source "ChessBase"]
[SourceQuality "1"]
[TimeControl "5400+30"]

1. d4 {[%emt 0:00:00]} Nf6 {[%emt 0:00:29]} 2. c4 {[%emt 0:00:00]} c5 {[%emt 0:00:09]} 3. d5 {[%emt 0:00:00]} b5 {[%emt 0:00:22]} 4. Qc2 {[%emt 0:01:09]} bxc4 {[%emt 0:03:58]} 5. e4 {[%emt 0:01:03]} d6 {[%emt 0:00:53]} 6. Bxc4 {[%emt 0:01:03]} g6 {[%emt 0:01:01]} 7. Nf3 {[%emt 0:02:30]} Bg7 {[%emt 0:02:36]} 8. O-O {[%emt 0:00:30]} O-O {[%emt 0:01:32]} 9. Nc3 {[%emt 0:01:26] LiveBook: 94 Games} Nbd7 {[%emt 0:01:52]} 10. Bf4 {[%emt 0:06:32]} Ng4 $11 {[%emt 0:02:35]} 11. Rab1 {[%emt 0:08:43]} Nge5 {[%emt 0:07:57]} 12. Nxe5 {[%emt 0:02:14]} Nxe5 {[%emt 0:00:25]} 13. b3 {[%emt 0:02:17]} f5 {[%emt 0:11:07]} 14. f3 {[%emt 0:14:56]} h6 {[%emt 0:12:49]} 15. Ne2 {[%emt 0:06:39]} g5 {[%emt 0:06:50]} 16. Bxe5 {[%emt 0:08:07]} Bxe5 {[%emt 0:00:54]} 17. exf5 {[%emt 0:03:33]} Bxf5 {[%emt 0:01:42]} 18. Bd3 {[%emt 0:00:15]} Qd7 {[%emt 0:10:09]} 19. f4 {[%emt 0:20:36]} gxf4 {[%emt 0:08:51]} 20. Nxf4 {[%emt 0:01:33]} Bxd3 {[%emt 0:04:09]} 21. Qxd3 {[%emt 0:08:01]} Qf5 {[%emt 0:01:46]} 22. Qxf5 {[%emt 0:01:45]} Rxf5 {[%emt 0:00:46]} 23. Ne6 {[%emt 0:00:34]} Rxf1+ {[%emt 0:00:35]} 24. Rxf1 {[%emt 0:00:29]} a5 {[%emt 0:01:10]} 25. g3 {[%emt 0:04:00]} a4 {[%emt 0:01:54]} 26. Kg2 {[%emt 0:01:54]} axb3 {[%emt 0:05:41]} 27. axb3 {[%emt 0:00:05]} Rb8 {[%emt 0:00:53]} 28. Rf3 {[%emt 0:00:44]} Rb4 {[%emt 0:01:39]} 29. Kh3 {[%emt 0:01:09]} h5 {[%emt 0:03:07]} 30. Rf5 {[%emt 0:02:32]} Rxb3 {[%emt 0:02:05]} 31. Nxc5 {[%emt 0:00:15]} dxc5 {[%emt 0:02:52]} 32. Rxe5 {[%emt 0:00:04]} Rb7 {[%emt 0:01:02]} 33. Rxh5 {[%emt 0:00:43]} c4 {[%emt 0:00:28]} 34. Rh4 {[%emt 0:00:28]} Rc7 {[%emt 0:00:14]} 35. Rd4 {[%emt 0:00:22]} c3 {[%emt 0:00:15]} 36. Rd1 {[%emt 0:00:04]} Kf7 {[%emt 0:01:04]} 1/2-1/2